Cogmind - Beta 9.2 @@@ ROGUE MODE // 2019.12.07 @ 16:31:24 Player: Kamecchi Result: Destroyed by Y-45 Defender with Heavy Assault Rifle Performance ------------- Evolutions (0) 0 Regions Visited (2) 400 Robots Destroyed (26) 130 Value Destroyed (599) 599 Prototype IDs (3) 60 Alien Tech Used (0) 0 Bonus (0) 0 TOTAL SCORE: 1189 Bonus ------- None Cogmind --------- Core Integrity 0/250 Matter 179/450 Energy 125/125 System Corruption 0% Temperature Cool (30) Movement Walking (180) Ox2 Location -10/Mines Parts ------- > --- POWER (1) -------- Light Ion Engine > --- PROPULSION (2) --- Aluminum Leg Aluminum Leg > --- UTILITY (2) ------ High-capacity Storage Unit Large Matter Pod > --- WEAPON (2) ------- EM Pulse Gun Assault Rifle > --- INVENTORY (12) --- Ion Engine Aluminum Leg Aluminum Leg Large Storage Unit Improved Signal Interpreter Utility Shielding Light Assault Rifle Light Assault Rifle Datajack Plasma Cutter Peak State ------------ > --- POWER ------------ Light Ion Engine > --- PROPULSION ------- Aluminum Leg Aluminum Leg > --- UTILITY ---------- Large Storage Unit Small Matter Pod > --- WEAPON ----------- EM Pulse Gun EM Pulse Gun > --- INVENTORY -------- Ion Engine Large Storage Unit Improved Signal Interpreter Reclamation Unit Small Laser Light Assault Rifle Plasma Cutter [Rating: 8] Favorites ----------- Power Ion Engine Engine Ion Engine Propulsion Aluminum Leg Leg Aluminum Leg Utility High-capacity Storage Unit Device Reclamation Unit Storage High-capacity Storage Unit Weapon Light Cannon Energy Gun EM Pulse Gun Ballistic Gun Assault Rifle Ballistic Cannon Light Cannon Special Melee Weapon Datajack Build | -11 -10 -10 ------- Run | Scr Mat Min Slots Evolved . | . . . Power . | . . . Propulsion . | . . . Utility . | . . . Weapon . | . . . Parts Attached 31 | 6 19 6 Power 4 | 1 1 2 Engine 4 | 1 1 2 Core . | . . . Reactor . | . . . Propulsion 6 | 2 2 2 Treads . | . . . Leg 6 | 2 2 2 Wheel . | . . . Hover . | . . . Flight . | . . . Utility 8 | 1 7 . Device 1 | . 1 . Storage 7 | 1 6 . Processor . | . . . Hackware . | . . . Protection . | . . . Artifact . | . . . Weapon 13 | 2 9 2 Energy Gun 6 | 2 3 1 Energy Cannon . | . . . Ballistic Gun 4 | . 3 1 Ballistic Cannon 2 | . 2 . Launcher . | . . . Special Weapon . | . . . Impact Weapon . | . . . Slashing Weapon . | . . . Piercing Weapon . | . . . Special Melee Weapon 1 | . 1 . Unidentified Prototypes . | . . . Parts Lost 9 | . 5 4 Power 1 | . . 1 Propulsion 2 | . 1 1 Utility . | . . . Weapon 6 | . 4 2 Highest Loss Streak 2 | . 2 1 Average Slot Usage (%) 99 | . 99 98 Engine 13 | . 14 13 Leg 27 | . 27 28 Storage 27 | . 27 28 Energy Gun 8 | . 12 . Ballistic Gun 9 | . 9 7 Ballistic Cannon 9 | . 5 19 Naked Turns . | . . . Heaviest Build 55 | 8 55 46 Greatest Support 20 | 20 20 20 Greatest Overweight (x) 2 | . 2 2 Average Overweight (x) 1 | . 1 2 Largest Inventory Capacity 18 | 4 18 12 Average Capacity 11 | 4 12 12 Most Carried 12 | 3 12 12 Average Carried 9 | 1 9 11 Final Capacity 12 | 4 12 12 Final Carried 12 | 3 12 10 Class Distribution -------------------- 93% | Mutant 6% | Scavenger-Mutant Dominant Class ---------------- Mutant | -10/Materials Mutant | -10/Mines Resources | -11 -10 -10 ----------- Run | Scr Mat Min Matter Collected 675 | 275 323 77 Remotely . | . . . Salvage Created 631 | 67 427 137 Parts 50 | 4 33 13 Haulers Intercepted . | . . . Recyclers Shooed . | . . . Parts Field Recycled . | . . . Retrieved Matter . | . . . Parts Self-Destructed . | . . . Prevented . | . . . Kills | -11 -10 -10 ------- Run | Scr Mat Min Combat Hostiles Destroyed 24 | 1 14 9 Guns 8 | 1 7 . Cannons 13 | . 6 7 AOE 3 | . 1 2 Classes Destroyed 5 | 2 2 1 Worker 1 | 1 . . Watcher 1 | . 1 . Swarmer 12 | . 6 6 Grunt 11 | 1 8 2 Sentry 1 | . . 1 Best Kill Streak 3 | 1 3 3 Combat Bots Only 3 | 1 3 3 Max Kills in Single Turn 1 | 1 1 1 Gunslinging . | . . . Exploded 1 | . 1 1 Melee . | . . . Uniques/NPCs Destroyed . | . . . Combat | -11 -10 -10 -------- Run | Scr Mat Min Damage Taken 1357 | 32 696 629 Core 251 | 11 91 149 Absorbed by Shields . | . . . Core Remaining (%) 95 | 95 . . Volleys Fired 83 | 4 50 29 Largest 2 | 2 2 2 Hottest 80 | 80 80 70 Shots Fired 151 | 8 87 56 Gun 75 | 8 63 4 Cannon 76 | . 24 52 Launcher . | . . . Special . | . . . Kinetic 106 | . 52 54 Thermal 5 | . 5 . Explosive . | . . . Electromagnetic 40 | 8 30 2 Robot Hit Streak 9 | 3 9 7 Robot Miss Streak 9 | 2 4 9 Penetration Max . | . . . Secondary Targets . | . . . Shots Hit Robots 84 | 5 51 28 Core Hits 32 | 3 18 11 Critical Hits . | . . . Critical Kills . | . . . Critical Parts Destroyed . | . . . Melee Attacks . | . . . Impact . | . . . Slashing . | . . . Piercing . | . . . Sneak Attacks . | . . . Combat Hostiles . | . . . Follow-up Attacks . | . . . Damage Inflicted 1346 | 54 758 534 Guns 587 | 54 498 35 Cannons 608 | . 210 398 Explosions 151 | . 50 101 Melee . | . . . Ramming . | . . . Kinetic 749 | . 340 409 Thermal 183 | . 82 101 Explosive . | . . . Electromagnetic 414 | 54 336 24 Impact . | . . . Slashing . | . . . Piercing . | . . . Highest Corruption . | . . . Average Corruption . | . . . Corruption Purged . | . . . Overload Shots . | . . . Overflow Damage . | . . . Projectiles . | . . . Explosions . | . . . Melee . | . . . Knockbacks 5 | . 4 1 Impact . | . . . Kinetic 4 | . 3 1 Secondary 1 | . 1 . Self-Inflicted Damage 45 | . . 45 Shots 1 | . . 1 Rammed . | . . . Targets Rammed . | . . . Kicked . | . . . Crushed . | . . . Highest Temperature 184 | 72 172 184 Average Temperature 46 | 34 50 43 Received Heat Transfer 405 | 18 219 168 Siege Activations . | . . . Robots Corrupted . | . . . Combat Hostiles . | . . . Parts Fried 1 | . 1 . Impact Corruptions . | . . . Robots Melted . | . . . Combat Hostiles . | . . . Parts Melted . | . . . Heat Transferred 225 | . 125 100 Parts Sabotaged . | . . . Parts Stolen . | . . . Parts Stripped . | . . . Power Chain Reactions 3 | . 2 1 Missiles Intercepted . | . . . Alert | -11 -10 -10 ------- Run | Scr Mat Min Peak Influence 239 | 25 172 239 Average Influence 104 | 4 85 169 Maximum Alert Level 1 | . . 1 Low Security (%) 87 | 100 100 52 Level 1 12 | . . 47 Level 2 . | . . . Level 3 . | . . . Level 4 . | . . . Level 5 . | . . . High Security . | . . . Max Security . | . . . Squads Dispatched 3 | . 3 . Investigation 3 | . 3 . Extermination . | . . . Reinforcement . | . . . Assault . | . . . Garrison . | . . . Intercept . | . . . Construction Impeded . | . . . Haulers Reinforced . | . . . Stealth | -11 -10 -10 --------- Run | Scr Mat Min Distress Signals . | . . . Communications Jammed . | . . . Distress Signals . | . . . Times Spotted 36 | 1 24 11 Peak Tracking Total 4 | 1 4 3 Tactical Retreats 5 | . 4 1 Traps | -11 -10 -10 ------- Run | Scr Mat Min Traps Triggered 3 | . 3 . Indirectly . | . . . Trap Hack Attempts . | . . . Triggered . | . . . Disarmed . | . . . Reprogrammed . | . . . Reused . | . . . Traps Extracted . | . . . Installed . | . . . Triggered . | . . . Machines | -11 -10 -10 ---------- Run | Scr Mat Min Machines Disabled 3 | . 2 1 Max in Single Turn 2 | . 2 1 Machines Sabotaged . | . . . Garrisons Compromised . | . . . Overloaded Fab Kills . | . . . Fab Network Shutdowns . | . . . Hacking | -11 -10 -10 --------- Run | Scr Mat Min Machines Accessed 8 | . 8 . Terminals 7 | . 7 . Fabricators . | . . . Repair Stations . | . . . Recycling Units 1 | . 1 . Scanalyzers . | . . . Garrison Access . | . . . Total Hacks 23 | . 23 . Successful 16 | . 16 . Failed 7 | . 7 . Catastrophic . | . . . Database Lockouts . | . . . Manual . | . . . Terminals 22 | . 22 . Fabricators . | . . . Repair Stations . | . . . Recycling Units 1 | . 1 . Scanalyzers . | . . . Garrison Access . | . . . Terminal Hacks 15 | . 15 . Record 5 | . 5 . Prototype ID Bank 2 | . 2 . Emergency Access Points 1 | . 1 . Terminal Index 1 | . 1 . Locate Traps 1 | . 1 . Dispatch Records 1 | . 1 . Surveillance Status 1 | . 1 . Hauler Manifests 1 | . 1 . Zone Layout 2 | . 2 . Fabricator Hacks . | . . . Repair Station Hacks . | . . . Recycling Unit Hacks 1 | . 1 . Report Inventory 1 | . 1 . Scanalyzer . | . . . Garrison Access Hacks . | . . . Unauthorized Hacks . | . . . Terminals . | . . . Fabricators . | . . . Repair Stations . | . . . Recycling Units . | . . . Scanalyzers . | . . . Garrison Access . | . . . Data Cores Recovered . | . . . Used . | . . . Hacking Detections 6 | . 6 . Full Trace Events 2 | . 2 . Feedback Events . | . . . Feedback Blocked . | . . . Robot Schematics Acquired . | . . . Robots Built . | . . . Matter . | . . . Time . | . . . Total Robot Build Rating . | . . . Part Schematics Acquired . | . . . Parts Built . | . . . Matter . | . . . Time . | . . . Total Part Build Rating . | . . . Parts Repaired . | . . . Time . | . . . Parts Recycled . | . . . Recycled Matter . | . . . Retrieved Matter . | . . . Retrieved Components . | . . . Parts Scanalyzed . | . . . Part Schematics Acquired . | . . . Parts Damaged . | . . . Bothacking | -11 -10 -10 ------------ Run | Scr Mat Min Used RIF Installer . | . . . Robots Hacked . | . . . Non-combat . | . . . Combat . | . . . Robot Hacks Applied . | . . . Relay Couplers Released . | . . . Robots Rewired . | . . . Allies Hacked . | . . . Hacks Repelled . | . . . Allies | -11 -10 -10 -------- Run | Scr Mat Min Total Allies . | . . . Largest Group . | . . . Highest-Rated Group . | . . . Highest-Rated Ally . | . . . Total Orders . | . . . Ally Attacks . | . . . Total Damage . | . . . Kills . | . . . Allies Corrupted . | . . . Allies Melted . | . . . Intel | -11 -10 -10 ------- Run | Scr Mat Min Robot Analysis Total . | . . . Derelict Logs Recovered . | . . . Drone Launches . | . . . Drone Recoveries . | . . . Exploration | -11 -10 -10 ------------- Run | Scr Mat Min Turns Passed 1701 | 99 1134 468 Spaces Moved 804 | 71 536 197 Core 18 | 18 . . Treads . | . . . Legs 786 | 53 536 197 Wheels . | . . . Hover . | . . . Flight . | . . . Fastest Speed 50 | 50 120 180 Average Speed 167 | 102 170 180 Slowest Speed 180 | 120 180 180 Overloaded Moves . | . . . Propulsion Burnouts . | . . . Robots Hopped . | . . . Cave-ins Triggered . | . . . Exploration Rate (%) 39 | 8 76 35 Regions Visited 2 Branch Regions 1 Pre-discovered Areas . | . . . Known Exits Taken . | . . . Unknown Exits Taken 2 | 1 1 . Scrap Searched . | . . . Spaces Dug . | . . . Terrain Destroyed 21 | . 3 18 Melee . | . . . Projectile 1 | . . 1 AOE 20 | . 3 17 Actions | -11 -10 -10 --------- Run | Scr Mat Min Total 1010 | 89 667 254 Wait 54 | . 36 18 Move 802 | 70 535 197 Hop . | . . . Pick Up 33 | 9 21 3 Fast Attach . | . . . Attach 18 | 6 8 4 Detach . | . . . Swap 13 | . 11 2 Drop 7 | . 6 1 Fire 83 | 4 50 29 Melee . | . . . Ram . | . . . Kick . | . . . Crush . | . . . Escape Stasis . | . . . Rewire . | . . . Trap . | . . . Miscellaneous . | . . . Route ------- -11/Scrapyard -10/Materials (discovered 4 exits: [*Mat x3] / [*Min]) -10/Mines (discovered 1 exit: [*Exi]) History --------- Turn | Location | Event 2 | -11/Scrapyard | Met Revision 17 76 | -11/Scrapyard | Discovered new exit (range 8) 100 | -11/Scrapyard | Entered Materials 243 | -10/Materials | Discovered new exit (range 16) 315 | -10/Materials | Build established: Mutant 318 | -10/Materials | Discovered new exit (range 11) 521 | -10/Materials | Discovered new exit (range 8) 816 | -10/Materials | Discovered new exit (range 9) 1234 | -10/Materials | Entered Mines 1356 | -10/Mines | Core integrity fell below 50% 1569 | -10/Mines | Deemed a non-threat by the Exiles lab entrance 1569 | -10/Mines | Discovered new exit (range 5) 1701 | -10/Mines | Core integrity fell below 20% 1702 | -10/Mines | Destroyed by Y-45 Defender with Heavy Assault Rifle Last Messages --------------- 01385_ G-47 Trooper destroyed. 01391_ G-34 Mercenary destroyed. 01394_ Acquired 9 matter. 01396_ Acquired 20 matter. 01400_ Acquired Aluminum Leg. 01414_ Plasma Injector explodes. 01414_ S-10 Pest destroyed. 01422_ R-06 Scavenger collects Lgt. Ion Engine. 01431_ Critical hit. 01431_ Lgt. Cannon destroyed. 01433_ S-10 Pest destroyed. 01435_ R-06 Scavenger collects Flight Unit. 01437_ Acquired 15 matter. 01457_ Dropped Aluminum Leg. 01494_ Acquired EM Pulse Gun. 01569_ "No threat detected, you may enter." 01569_ EXIT=FOUND 01688_ Lgt. Cannon destroyed. 01700_ Chain reaction triggered in Imp. Ion Engine. 01700_ Y-45 Defender destroyed. Map ----- +----------------------------------------------------+ | ?????????????????????????????????? | | ?????????????????????????????????? | | ?????????????????????????????????? | | ?????????????????????????????????? | | ?????????????????????????????????? | | ?????????????????????????????????? | | ?????????????????????????????????? | | ?????????????????????????????????? | | ?????????????????????????????????? | | ?????????????????????????????????? | | ?????????????????????????????????? | | ?????????????????????????????????? | | ?????????????????????????????????? | | ?????????????????????????????????? | | ?????????????????????????????????? | | ?????????????????????????????????? | | ?????????????????????????????????? | | ?????????????????????????????????? | | ?????????????????????????????????? | | ?????######??????????????????????? | | ????##" "#??????????????????????? | | ????#|] !!??????????????????????? | | ????#| !!??????????????????????? | | ?????# = #??????????????????????? | | ????## Y;;###????????????????????? | | ????# %@ ##???????????????????? | | ????# #???????????????????? | | ????# ######???????????????? | | ????# #???????????????? | | ????#### #???????????????? | | ???????## #### #???????????????? | | ????????####??# #???????????????? | | ?????????####?# #??#????????????? | | ?????????# ?# ## ####?????????? | | ?????????# ## #?????? | | ?????????# # ##### #?????????? | | ?????????# #???# #?????????? | | ?????????# ###### #?????????? | | ?????????# ## #?????????? | | ?????????# ### #### #?????????? | | ?????????#### #?# #?## ##????????? | | ????????????# #?# ### ####?????? | | ????????????# #?# ## ##????? | | ????????????# #?# ### #????? | | ????????????# ### #?#### #????? | | ????????????# #????## ##???? | | ?????##???############### #???? | | ?????#<#### #???? | | ?????# ## ############# ##??? | | ???????# #??????????# #??? | +----------------------------------------------------+ Best States ------------- Heat Dissipation 25 Energy Generation 10 Energy Capacity 250 Matter Stores 426 Matter Capacity 450 Sight Range 16 Terrain Scan Density 10 Evasion (%) 50 Item Schematics ----------------- None Robot Schematics ------------------ None Fabricated ------------ Nothing Alien Tech Used ----------------- None Achievements -------------- Shopping List Challenges ------------ None Game ------ Seed SignalMasterManipulator Manual? 0 Play Time 00:24:24 Cumulative 1.8 hours Start 2019.12.07 @ 12:32:41 End 2019.12.07 @ 16:31:24 Sessions 2 Manual Loads 0 Difficulty Rogue Special Mode None Game No. 2 Rogue 2 Adventurer 0 Explorer 0 Win Type - Total 0 Types 0/0/0/0/0/0/0 Lore% 2 Gallery% 3 Achievement% 4 Wizard Run 0 Options --------- ASCII 0 Keyboard 0 Movement Mouse Keybinds 0 Fullscreen 1 Font 12/Terminus Map View 76x56 Tactical HUD 1 Map Filters NONE Filters NONE Steam 0 RUN: 1e6673e2-c26a-416b-9ed2-0b2c221848c9